bitfinex-derivatives/quotes_ETHF0:USTF0_20250830
["timestamp","ask_amount","ask_price","bid_price","bid_amount"]
[1756557454079,0.4881,4361.2,4361.1,0.4999]
[1756557454980,0.4881,4361.2,4361.1,0.7359]
[1756557456075,0.4881,4361.2,4361.1,0.1944]
[1756557456287,0.4881,4360.9,4360.8,0.4999]
[1756557456494,0.4881,4360.9,4360.8,0.7359]
[1756557457487,0.4881,4360.9,4360.8,0.4304]
[1756557457874,0.4999,4360.9,4360.8,0.7411]
[1756557459784,0.4999,4360.9,4360.8,0.4304]
[1756557459980,0.2851,4360.8,4360.7,33.026]
[1756557460186,0.2851,4360.8,4360.7,33.262]
[1756557461086,0.2851,4360.8,4359.8,3.2078]
[1756557461295,0.4861,4359.9,4359.8,0.3107]
[1756557461489,0.4861,4359.9,4359.4,2.04915354]
[1756557461490,0.4861,4359.4,4359.3,0.5109]
[1756557461691,0.4861,4359.4,4359.3,0.236]
[1756557461996,0.4861,4359.4,4358.9,0.3107]
[1756557461997,0.4861,4359.4,4359.1,0.236]
[1756557462190,0.4861,4359.4,4358.9,0.3107]
[1756557462489,0.4861,4359.4,4356.8,5.32779921]
[1756557462490,0.2851,4357.9,4357.6,4.91796849]
[1756557462798,0.2851,4358.3,4357.7,0.5477]
[1756557463089,0.201,4357.9,4357.8,0.7479]
[1756557463289,3.2078,4358.4,4358.3,0.5109]
[1756557463495,3.4088,4359.3,4359.2,0.5109]
[1756557463691,3.6939,4359.3,4359.1,0.237]
[1756557464001,3.2078,4360.4,4359.1,0.237]
[1756557464194,3.4929,4360.4,4359.2,0.3107]
[1756557464395,3.4929,4360.4,4358.7,36.2388]
[1756557464396,0.201,4359.6,4359.5,0.3107]
[1756557464594,0.201,4359.6,4359.0,0.3107]
[1756557464789,0.201,4359.6,4359.1,0.237]
[1756557464992,0.2851,4359.2,4359.1,0.237]
[1756557465297,0.201,4359.2,4359.1,0.2002]
[1756557465592,3.2078,4359.3,4359.1,0.2002]
[1756557465799,3.2078,4359.3,4359.2,0.5109]
[1756557466100,3.6939,4359.3,4359.2,0.5109]
[1756557466303,3.6939,4359.3,4359.2,0.133]
[1756557466995,3.6939,4359.3,4358.7,0.3107]
[1756557467303,0.2851,4359.2,4358.9,0.3107]
[1756557467495,0.2851,4359.2,4357.9,40.8]
[1756557467496,0.4861,4359.2,4359.1,0.2002]
[1756557468498,0.4861,4358.8,4357.9,3.2078]
[1756557468700,3.6939,4358.8,4358.0,0.5477]
[1756557469003,0.2851,4358.7,4358.0,0.5477]
[1756557469299,0.2851,4358.7,4358.0,0.3107]
[1756557469503,3.2078,4358.8,4358.1,0.237]
[1756557469504,0.4861,4358.2,4358.1,0.237]
[1756557469802,0.201,4358.2,4358.1,0.237]
[1756557470001,0.201,4358.2,4357.3,3.2078]
[1756557470202,0.201,4358.2,4357.5,0.3107]
[1756557470403,0.2851,4358.2,4357.6,0.238]
[1756557470614,0.237,4359.3,4357.5,0.3107]
[1756557470615,0.4861,4357.6,4357.5,0.5109]
[1756557470798,3.2078,4358.4,4357.8,0.3107]
[1756557471103,3.2078,4358.4,4358.3,0.5109]
[1756557471403,3.6939,4358.4,4357.8,0.3107]
[1756557471706,0.201,4357.1,4357.0,33.037]
[1756557471895,0.201,4357.1,4357.0,33.275]
[1756557471896,0.4861,4357.1,4357.0,33.275]
[1756557472100,3.2078,4357.2,4357.0,33.5857]
[1756557472307,3.2078,4357.2,4357.1,0.5109]
[1756557472602,3.6939,4357.2,4357.1,0.5109]
[1756557472795,0.2851,4357.6,4357.1,0.7489]
[1756557473001,3.2078,4357.7,4357.1,0.238]
[1756557473202,0.201,4357.2,4357.1,0.5109]
[1756557473408,0.201,4357.2,4357.1,0.7489]
[1756557473696,3.6939,4357.7,4357.2,0.3107]
[1756557473898,0.4861,4357.6,4357.5,0.2002]
[1756557474102,0.4861,4357.6,4357.5,0.5109]
[1756557474306,0.2851,4357.4,4357.3,0.7489]
[1756557474499,3.2078,4357.7,4357.3,0.7489]
[1756557474694,0.2851,4357.6,4357.5,0.2002]
[1756557474896,0.4861,4357.6,4357.3,0.238]
[1756557475095,3.2078,4357.7,4357.1,0.3107]
[1756557475096,0.201,4357.2,4357.1,0.3107]
[1756557475303,0.2851,4357.1,4357.0,33.037]
[1756557475604,0.2851,4357.1,4357.0,33.275]
[1756557476705,0.4861,4357.1,4356.6,0.3107]
[1756557477000,0.4861,4357.1,4356.2,0.5487]
[1756557477206,3.2078,4356.7,4356.3,0.3107]
[1756557477396,0.4861,4356.6,4356.5,0.2002]
[1756557477596,0.4861,4356.6,4356.5,0.238]
[1756557477998,0.4861,4356.6,4356.5,0.7489]
[1756557478196,0.201,4356.6,4356.5,0.7489]
[1756557478402,0.4861,4356.6,4356.5,0.7489]
[1756557478603,0.201,4356.6,4356.5,0.7489]
[1756557478803,3.2078,4356.7,4356.6,0.3107]
[1756557479004,3.2078,4356.7,4356.6,0.5109]
[1756557479210,3.6939,4356.7,4356.1,0.3107]
[1756557479511,0.201,4356.6,4356.5,0.2002]
[1756557479711,0.4861,4356.6,4356.5,0.2002]
[1756557480012,0.4861,4356.5,4356.4,0.2002]
[1756557480306,0.4861,4356.5,4356.4,0.4382]
[1756557480504,0.4861,4356.5,4356.4,0.238]
[1756557480703,0.4861,4356.5,4356.4,0.7489]
[1756557481298,0.4861,4356.4,4356.3,0.4382]
[1756557481504,0.4861,4356.4,4356.3,0.7489]
[1756557481700,0.4861,4356.4,4356.3,0.4382]
[1756557481902,3.2078,4356.7,4355.4,3.2078]
[1756557481903,0.201,4356.0,4355.4,3.2078]
[1756557482105,0.4861,4355.5,4355.4,0.5109]
[1756557482304,0.4861,4355.5,4355.4,0.7489]
[1756557482512,0.2851,4355.4,4355.3,33.285]
[1756557482712,0.2851,4355.4,4355.3,33.047]
[1756557483109,0.2851,4355.2,4355.1,0.238]
[1756557483308,0.4861,4355.2,4355.0,0.3107]
[1756557483506,0.4861,4355.1,4355.0,0.7489]
[1756557483708,0.2851,4356.1,4355.1,0.72396]
[1756557483922,0.2851,4355.9,4354.8,3.2078]
[1756557484214,0.2851,4356.1,4355.0,0.3107]
[1756557484408,0.2851,4355.6,4355.0,0.3107]
[1756557484610,0.201,4355.0,4354.9,0.5109]
[1756557484916,0.2851,4355.6,4355.0,0.3107]
[1756557485207,3.2078,4355.7,4355.6,0.5109]
[1756557485508,33.054,4357.8,4355.9,0.3107]
[1756557485509,3.4929,4356.8,4355.9,0.3107]
[1756557485710,3.4929,4356.8,4356.0,0.3107]
[1756557485911,0.201,4356.1,4356.0,0.5109]
[1756557486111,3.2078,4356.8,4354.6,3.62111]
[1756557486410,0.201,4356.3,4356.2,0.2002]
[1756557486608,3.4088,4356.3,4356.2,0.6879]
[1756557486806,3.4088,4356.3,4355.3,3.2078]
[1756557486807,3.6939,4356.3,4355.7,0.3107]
[1756557487002,0.51,4355.9,4355.8,0.113]
[1756557487203,0.5,4355.0,4354.9,0.4818]
[1756557487413,3.2078,4355.8,4355.6,0.2012]
[1756557487414,0.5,4355.7,4355.6,0.2012]
[1756557487616,0.309,4356.5,4355.7,0.2806]
[1756557487813,0.191,4355.9,4355.8,0.4392]
[1756557488016,0.5,4355.9,4355.8,0.238]
[1756557488520,0.5,4355.9,4355.8,0.7198]
[1756557488907,7.89526852,4355.9,4355.2,0.238]
[1756557489212,0.309,4355.7,4354.8,0.238]
[1756557489407,3.2078,4355.9,4354.8,0.238]
[1756557489408,0.18757751,4355.6,4354.8,0.2806]
[1756557489615,0.5,4354.9,4354.8,0.7198]
[1756557489812,0.5,4354.9,4354.8,0.4392]
[1756557490008,3.5168,4355.8,4354.8,0.4392]
[1756557490314,0.18756137,4355.7,4355.6,0.4818]
[1756557490518,0.18756137,4355.7,4355.6,0.7198]
[1756557490717,0.309,4356.2,4355.6,0.7198]
[1756557490918,0.191,4355.7,4355.6,0.4818]
[1756557491114,3.2078,4356.3,4355.6,0.4402]
[1756557491323,0.1876885,4356.2,4356.1,0.4818]
[1756557491614,3.2078,4356.3,4356.2,0.4818]
[1756557491822,3.2078,4356.3,4356.2,0.7208]
[1756557492014,3.2078,4356.8,4356.2,0.7208]
[1756557492218,0.1147,4356.9,4356.6,0.4818]
[1756557492409,0.1147,4356.9,4356.8,0.2012]
[1756557492616,0.1147,4356.9,4356.8,0.7208]
[1756557492819,0.309,4358.4,4357.8,0.2012]
[1756557493127,0.5,4358.4,4358.3,0.4818]
[1756557493517,0.5,4358.4,4358.3,0.2012]
[1756557493912,3.2078,4358.6,4357.8,0.239]
[1756557493913,0.191,4357.9,4357.8,0.239]
[1756557494219,0.191,4357.9,4356.8,0.2806]
[1756557494220,0.191,4357.4,4356.8,0.2806]
[1756557494415,3.2078,4357.6,4356.9,0.239]
[1756557494614,3.2078,4357.1,4357.0,0.4818]
[1756557495119,0.5,4357.1,4357.0,0.2012]
[1756557495322,0.5,4357.1,4356.5,0.2806]
[1756557495512,0.191,4356.7,4356.6,0.239]
[1756557495716,0.309,4356.9,4356.6,0.4402]
[1756557495915,3.2078,4357.1,4356.6,0.4402]
[1756557496125,0.309,4357.5,4357.4,0.2012]
[1756557496328,3.5168,4357.7,4357.5,0.2806]
[1756557496826,0.5,4357.6,4357.5,0.239]
[1756557497121,0.5,4357.6,4356.9,0.2806]
[1756557497425,0.5,4357.6,4357.5,0.2012]
[1756557497622,0.5,4357.6,4357.5,0.4818]
[1756557497820,0.5,4357.6,4357.0,0.2806]
[1756557498026,0.5,4357.6,4357.1,0.239]
[1756557498223,0.309,4357.5,4357.1,0.239]
[1756557498525,3.5168,4357.7,4357.1,0.7208]
[1756557498733,0.5,4357.2,4357.1,0.4818]
[1756557498918,0.5,4357.2,4357.1,0.7208]
[1756557499416,0.5,4357.2,4356.6,0.2806]
[1756557499614,0.5,4357.2,4356.1,0.2806]
[1756557499615,0.309,4357.1,4356.1,0.2806]
[1756557499925,0.191,4356.2,4356.0,0.5196]
[1756557500123,0.5,4356.1,4356.0,0.239]
[1756557500318,0.5,4356.1,4356.0,0.4402]
[1756557500520,0.5,4356.1,4356.0,0.7208]
[1756557500725,0.5,4356.1,4356.0,0.4402]
[1756557500923,0.5,4356.1,4356.0,0.239]
[1756557501429,0.191,4356.1,4356.0,0.7208]
[1756557501623,0.309,4356.5,4356.0,0.239]
[1756557501814,0.5,4356.5,4356.4,0.2012]
[1756557502020,0.309,4356.4,4356.1,0.2806]
[1756557502221,0.309,4356.4,4356.0,0.239]
[1756557502419,3.5168,4356.6,4356.5,0.2012]
[1756557502722,3.5168,4356.6,4356.5,0.4818]
[1756557503421,0.191,4356.2,4356.1,0.239]
[1756557503620,0.5,4356.2,4356.1,0.239]
[1756557504126,0.5,4356.2,4355.6,0.2806]
[1756557504321,0.5,4356.2,4355.7,0.239]
[1756557504521,0.309,4356.1,4355.8,0.2806]
[1756557504715,0.309,4356.5,4355.8,0.2806]
[1756557505415,0.309,4356.5,4356.4,0.2012]
[1756557505616,3.2078,4356.6,4356.4,0.4818]
[1756557505917,3.2078,4356.6,4356.5,0.4818]
[1756557506122,3.2078,4357.2,4357.1,0.2012]
[1756557506323,3.7078,4357.2,4357.1,0.0867]
[1756557506523,3.7078,4357.2,4357.1,0.3474]
[1756557506724,3.7078,4357.2,4356.7,0.239]
[1756557507124,3.2078,4357.2,4356.7,0.4997]
[1756557507319,0.309,4357.1,4356.8,0.2607]
[1756557507624,0.309,4357.1,4356.7,0.239]
[1756557507929,3.2078,4357.2,4357.1,0.4619]
[1756557508427,3.2078,4357.2,4357.1,4.4619]
[1756557508618,2.83570619,4360.3,4357.2,0.2607]
[1756557508619,3.2078,4357.9,4357.2,0.2607]
[1756557510030,0.309,4357.8,4357.2,0.2607]
[1756557510631,0.309,4357.8,4357.3,0.239]
[1756557510831,3.5168,4357.9,4357.3,0.4997]
[1756557511026,3.5168,4357.9,4357.3,0.2607]
[1756557511231,0.191,4356.6,4356.5,0.2607]
[1756557511434,0.5,4356.6,4356.5,0.7009]
[1756557511833,3.2078,4357.3,4356.6,0.2607]
[1756557512132,3.5168,4357.3,4356.6,0.2607]
[1756557512332,3.5168,4357.8,4357.2,0.4619]
[1756557512539,3.2078,4357.8,4357.3,0.239]
[1756557512833,0.5,4357.4,4356.4,0.2607]
[1756557513033,0.5,4357.4,4356.6,0.2607]
[1756557513331,0.309,4358.1,4357.3,3.409]
[1756557513533,0.309,4358.7,4358.6,0.2012]
[1756557513831,3.2078,4358.8,4358.6,0.239]
[1756557514026,0.191,4358.7,4358.6,0.239]
[1756557514530,0.5,4358.6,4358.5,0.239]
[1756557514936,0.5,4358.6,4358.0,33.06]
[1756557515135,0.191,4358.6,4358.0,33.06]
[1756557515332,0.5,4358.2,4358.0,33.06]
[1756557515532,0.309,4358.2,4357.3,0.239]
[1756557515734,0.309,4357.7,4357.3,0.239]
[1756557516131,0.309,4357.7,4356.7,0.2607]
[1756557516327,0.309,4357.7,4356.8,0.239]
[1756557517131,0.309,4357.7,4356.7,0.2607]
[1756557517330,0.309,4357.7,4356.8,0.239]
[1756557519034,0.3067,4357.2,4356.7,0.2607]
[1756557519334,3.2078,4357.3,4356.8,0.239]
[1756557519641,0.3067,4357.7,4356.8,0.239]
[1756557519832,0.3067,4357.7,4356.7,0.2607]
[1756557520031,0.3067,4357.2,4356.6,33.059]
[1756557520329,3.2078,4357.3,4356.3,3.4685]
[1756557520330,0.1937,4356.8,4356.3,3.4685]
[1756557520530,0.3067,4357.2,4356.4,0.239]
[1756557520730,0.3067,4357.2,4356.5,0.239]
[1756557520930,0.3067,4357.2,4356.6,0.239]
[1756557521138,0.5004,4356.7,4356.6,0.239]
[1756557521930,0.3067,4356.6,4356.4,0.2607]
[1756557522126,0.3067,4356.6,4356.5,0.239]
[1756557522534,0.3067,4356.6,4356.5,0.7038]
[1756557522728,0.3067,4356.6,4355.8,3.2078]
[1756557522729,0.1937,4356.6,4355.8,3.2078]
[1756557523040,0.3067,4355.8,4354.5,0.3103]
[1756557523242,4.0,4356.5,4354.5,0.3103]
[1756557523243,3.2078,4355.1,4354.5,0.3103]
[1756557524340,3.2078,4355.1,4354.4,0.239]
[1756557525639,3.2078,4354.5,4354.1,0.09404633]
[1756557525838,0.24,4354.4,4354.1,0.09404633]
[1756557526137,0.57649243,4354.3,4352.3,0.1]
[1756557526332,3.2078,4353.7,4352.7,0.3103]
[1756557526529,3.2078,4353.7,4352.8,0.241]
[1756557526735,3.2078,4353.7,4352.7,0.3103]
[1756557526935,3.2078,4353.2,4352.8,0.241]
[1756557527235,3.2078,4353.2,4352.6,0.241]
[1756557527747,3.2078,4353.2,4352.6,0.5513]
[1756557528040,3.2078,4353.7,4352.7,0.3103]
[1756557528742,3.2078,4353.7,4352.6,0.241]
[1756557528943,3.2078,4353.7,4352.9,0.3103]
[1756557529643,3.2078,4353.7,4353.0,0.241]
[1756557530140,3.2078,4353.7,4353.1,0.3103]
[1756557530638,3.2078,4354.3,4353.3,0.3103]
[1756557531438,3.2078,4354.3,4353.4,0.143]
[1756557531637,3.2078,4354.3,4353.5,0.3103]
[1756557531839,3.2078,4354.3,4353.7,0.3103]
[1756557532038,3.2078,4355.3,4353.7,0.3103]
[1756557532238,3.2078,4354.8,4353.7,0.3103]
[1756557532640,3.2078,4355.3,4354.3,3.2078]
[1756557532839,3.2078,4355.3,4354.4,0.5513]
[1756557533842,3.2078,4355.3,4354.5,0.241]
[1756557534042,3.2078,4355.3,4353.9,0.3103]
[1756557534338,0.1147,4356.5,4353.9,0.3103]
[1756557534339,3.2078,4354.8,4353.9,0.3103]
[1756557534640,3.2078,4354.8,4354.0,0.241]
[1756557535046,3.2078,4354.8,4353.9,0.3103]
[1756557535047,3.2078,4354.3,4353.1,0.3103]
[1756557535245,3.2078,4353.7,4353.1,0.241]
[1756557535738,3.2078,4353.7,4352.9,3.2078]
[1756557536044,3.2078,4353.7,4353.0,0.3103]
[1756557536247,3.19700398,4353.7,4353.0,0.5513]
[1756557537547,3.19700398,4353.7,4353.1,0.241]
[1756557538056,3.19700398,4353.7,4353.0,0.3103]
[1756557538247,3.2078,4353.5,4352.9,3.2078]
[1756557538749,3.2078,4353.5,4353.0,0.241]
[1756557538950,3.2078,4353.5,4353.1,0.3103]
[1756557539144,3.2078,4353.5,4353.0,0.241]
[1756557539343,3.2078,4354.2,4353.1,0.3103]
[1756557539845,3.2078,4354.2,4353.2,0.241]
[1756557540244,0.1148,4354.1,4353.3,0.3103]
[1756557540646,0.1148,4354.1,4353.6,0.3103]
[1756557540947,0.1148,4354.1,4353.8,0.3103]
[1756557541250,0.1148,4354.1,4353.9,0.241]
[1756557541548,3.2078,4355.2,4354.2,0.72364]
[1756557541748,3.2078,4355.2,4354.3,0.3103]
[1756557541949,3.2078,4355.2,4354.5,0.3103]
[1756557542342,3.2078,4356.1,4355.2,0.1955]
[1756557542543,3.2078,4356.1,4355.3,0.241]
[1756557543144,3.2078,4356.7,4355.8,3.2078]
[1756557543343,0.1147,4356.6,4355.9,0.241]
[1756557543652,0.2293,4356.6,4355.9,0.241]
[1756557543852,0.1146,4356.6,4355.9,0.241]
[1756557544050,0.1146,4356.6,4356.0,3.2078]
[1756557544347,0.1146,4356.6,4355.9,0.88374]
[1756557544348,0.1146,4356.6,4356.5,3.5181]
[1756557544549,0.1146,4356.6,4356.5,3.7591]
[1756557544848,3.2078,4357.5,4356.5,7.5181]
[1756557545050,0.1147,4357.4,4356.6,0.241]
[1756557545247,0.1147,4357.4,4356.5,0.3103]
[1756557545553,3.2078,4357.5,4356.6,0.241]
[1756557545741,0.1147,4357.4,4356.6,0.241]
[1756557545948,0.1146,4357.3,4356.6,0.241]
[1756557546850,0.1147,4357.2,4356.6,0.241]
[1756557547346,0.1147,4356.9,4356.7,0.241]
[1756557547743,3.2078,4357.0,4356.7,0.241]
[1756557548151,0.1147,4356.9,4356.7,0.241]
[1756557548346,0.1147,4356.8,4356.1,33.079]
[1756557548544,0.1147,4356.4,4356.2,0.241]
[1756557548942,0.1147,4356.4,4356.2,0.5232]
[1756557549143,0.1147,4356.4,4356.3,0.241]
[1756557549548,3.2078,4356.5,4356.1,33.079]
[1756557549749,3.2078,4356.5,4356.2,0.241]
[1756557550152,0.1147,4356.4,4356.1,33.079]
[1756557550346,3.2078,4356.5,4356.1,33.079]
[1756557550546,0.1147,4356.2,4356.1,33.32]
[1756557550848,3.2078,4356.5,4356.1,33.32]
[1756557551253,3.2078,4356.5,4356.2,0.2822]
[1756557551254,0.1147,4356.4,4356.2,0.2822]
[1756557551447,3.2078,4356.5,4356.3,0.241]
[1756557551752,0.1147,4356.4,4356.3,0.241]
[1756557552153,3.2078,4357.0,4356.1,33.079]
[1756557552354,0.1147,4356.9,4356.2,0.24]
[1756557553249,0.1836,4356.3,4356.2,0.24]
[1756557553456,3.2078,4357.0,4356.1,33.079]
[1756557553457,0.1147,4356.2,4356.1,33.079]
[1756557553754,0.2983,4356.2,4356.1,0.24]
[1756557553944,0.2983,4356.2,4355.4,0.2822]
[1756557553945,0.1836,4355.5,4355.4,0.2822]
[1756557554145,3.2078,4355.7,4355.5,0.2822]
[1756557554347,0.1147,4355.6,4355.5,0.2822]
[1756557554546,3.2078,4355.7,4355.4,0.24]
[1756557554748,0.1147,4355.6,4355.4,0.24]
[1756557554947,0.1147,4355.6,4354.8,0.2822]
[1756557555248,0.1147,4355.6,4355.3,0.2822]
[1756557555553,0.1147,4355.6,4355.4,0.5222]
[1756557556452,0.1147,4355.6,4355.4,0.24]
[1756557556651,0.1147,4355.6,4355.5,0.2822]
[1756557557255,0.1147,4355.6,4355.5,0.5222]
[1756557557854,0.1147,4356.1,4355.5,0.5222]
[1756557559451,3.2078,4356.2,4356.1,0.479]
[1756557559651,3.2078,4356.2,4356.1,0.719]
[1756557561957,3.5061,4356.2,4356.1,0.24]
[1756557562458,0.2983,4356.1,4356.0,0.24]
[1756557562659,3.2078,4356.2,4356.1,0.479]
[1756557563054,3.2078,4356.2,4356.1,0.719]
[1756557563857,3.5061,4356.2,4356.1,0.24]
[1756557564159,0.2983,4356.1,4356.0,0.24]
[1756557564456,0.2983,4356.1,4354.8,4.78908512]
[1756557564457,0.1848,4355.7,4354.8,4.78908512]
[1756557564656,0.3003,4355.7,4354.9,0.5222]
[1756557564853,0.3003,4355.7,4354.9,0.2822]
[1756557565159,0.3003,4355.7,4355.0,0.24]
[1756557565560,0.1147,4355.6,4355.0,0.24]
[1756557566156,0.1147,4355.6,4355.5,0.479]
[1756557566755,3.3233,4356.2,4355.5,0.479]
[1756557566950,3.3233,4356.2,4355.5,0.719]
[1756557567154,3.3233,4356.2,4355.6,0.2822]
[1756557567951,0.1848,4355.7,4355.6,0.2822]
[1756557568157,0.3003,4355.7,4355.6,0.2822]
[1756557569155,0.3003,4355.7,4355.6,0.479]
[1756557570761,0.1146,4356.1,4355.6,0.1968]
[1756557570956,0.1146,4356.1,4355.5,0.239]
[1756557570957,0.1155,4356.0,4355.7,0.2822]
[1756557571153,0.1155,4356.0,4355.9,0.1968]
[1756557571350,0.1155,4356.0,4355.9,0.479]
[1756557571556,3.3233,4356.2,4355.9,0.1968]
[1756557571756,3.3233,4356.2,4355.6,0.2822]
[1756557572460,0.1146,4356.1,4356.0,0.479]
[1756557573264,0.4149,4356.1,4356.0,0.479]
[1756557573465,0.3003,4356.1,4356.0,0.479]
[1756557574364,0.3003,4356.1,4355.5,0.239]
[1756557574667,3.2078,4356.2,4355.5,0.239]
[1756557574972,3.3233,4356.2,4355.6,0.2822]
[1756557578169,0.3004,4355.7,4355.6,0.479]
[1756557579667,3.5082,4355.7,4355.6,0.479]
[1756557580468,3.3926,4355.7,4355.6,0.479]
[1756557581267,3.2078,4355.7,4355.6,0.479]
[1756557582768,3.2078,4355.7,4355.6,0.717]
[1756557584674,3.3928,4355.7,4355.6,0.717]
[1756557585269,3.2078,4355.7,4355.6,0.717]
[1756557585672,3.5084,4355.7,4355.6,0.479]
[1756557585976,3.5084,4355.7,4355.6,0.717]
[1756557586277,3.5084,4355.7,4354.8,0.2972]
[1756557586478,3.5084,4355.7,4355.0,0.2972]
[1756557587386,0.1156,4355.6,4355.0,0.2972]
[1756557588568,3.2078,4355.7,4355.1,0.238]
[1756557588774,0.3006,4355.3,4355.2,0.7321]
[1756557589479,0.185,4355.3,4355.2,0.7321]
[1756557590588,0.3006,4355.3,4355.2,0.7321]
[1756557590883,0.185,4355.3,4355.2,0.7321]
[1756557591688,0.3006,4355.3,4355.2,0.4941]
[1756557591889,0.185,4355.3,4355.2,0.7321]
[1756557592187,3.2078,4355.7,4355.6,0.4941]
[1756557592784,0.1146,4356.5,4355.6,0.4941]
[1756557592785,3.2078,4356.4,4355.7,0.2972]
[1756557592990,3.5084,4356.4,4356.3,0.4941]
[1756557593188,3.5084,4356.4,4356.3,0.7321]
[1756557593385,0.1146,4356.5,4356.4,0.2972]
[1756557593587,0.1146,4356.5,4356.4,0.4941]
[1756557593987,0.4152,4356.5,4356.4,0.4941]
[1756557594294,0.4152,4356.5,4356.4,0.4349]
[1756557594490,0.4152,4356.5,4356.4,0.7321]
[1756557595190,3.623,4356.5,4356.4,0.238]
[1756557596194,0.3006,4356.2,4356.1,0.7321]
[1756557596495,0.3006,4356.2,4356.1,0.238]
[1756557596994,3.3224,4356.5,4356.1,0.4349]
[1756557597296,3.623,4356.5,4356.4,0.4941]
[1756557599392,3.5084,4356.5,4356.4,0.4941]
[1756557600595,3.3928,4357.0,4356.9,0.4941]
[1756557600796,3.5084,4357.0,4356.9,0.4941]
[1756557600997,3.5084,4357.0,4356.3,0.2972]
[1756557601496,0.3006,4356.4,4356.3,0.4941]
[1756557601696,0.3006,4356.4,4356.3,0.7321]
[1756557602397,3.3234,4357.0,4356.4,0.2972]
[1756557602591,0.185,4356.5,4356.4,0.4941]
[1756557602799,0.3006,4356.5,4356.4,0.4941]
[1756557603601,0.1156,4356.8,4356.4,0.4941]
[1756557603892,0.3006,4356.8,4356.7,0.1969]
[1756557604098,0.3006,4356.8,4356.7,0.4941]
[1756557604999,0.185,4356.8,4356.4,0.2972]
[1756557605299,0.185,4356.5,4356.4,0.4941]
[1756557605598,0.3006,4356.5,4356.4,0.7321]
[1756557606903,0.3006,4356.5,4356.4,0.4941]
[1756557607899,3.2078,4357.0,4356.3,0.238]
[1756557608103,0.2959,4356.5,4356.4,0.4797]
[1756557608400,0.2959,4356.5,4356.4,0.7167]
[1756557609104,0.1138,4356.9,4356.5,0.285]
[1756557609305,0.1138,4356.9,4356.8,0.1947]
[1756557609603,0.1138,4356.9,4356.8,0.4797]
[1756557609804,0.2959,4356.9,4356.8,0.4797]
[1756557610310,3.3899,4357.0,4356.9,0.4797]
[1756557610500,3.5037,4357.0,4356.9,0.4797]
[1756557611405,3.5037,4357.0,4356.6,0.285]
[1756557611605,0.1821,4356.9,4356.8,0.1947]
[1756557611799,0.2959,4356.9,4356.8,0.4797]
[1756557612205,0.2959,4356.9,4356.8,0.1947]
[1756557612605,0.1821,4356.5,4356.4,0.4317]
[1756557612906,3.5037,4356.5,4356.4,0.7167]
[1756557613602,3.5037,4356.5,4356.4,0.4797]
[1756557615107,3.3899,4356.5,4356.1,0.285]
[1756557615309,0.1821,4356.1,4356.0,0.7167]
[1756557615708,0.2959,4356.1,4356.0,0.7167]
[1756557616204,0.1821,4356.1,4356.0,0.7167]
[1756557616410,3.2078,4356.5,4356.0,0.4317]
[1756557616599,0.1138,4356.4,4356.1,0.285]
[1756557616804,0.1821,4356.2,4356.1,0.4797]
[1756557617003,0.2959,4356.2,4356.1,0.4797]
[1756557617709,0.2959,4356.2,4355.9,0.237]
[1756557618008,0.2959,4356.0,4355.9,0.237]
[1756557618203,0.2959,4356.0,4355.9,0.522]
[1756557618412,0.2959,4356.0,4355.9,0.285]
[1756557618599,3.2078,4356.0,4355.2,0.285]
[1756557618803,0.1138,4355.6,4355.3,0.237]
[1756557619011,0.1821,4355.6,4355.5,0.4797]
[1756557619904,0.1821,4355.6,4354.8,0.285]
[1756557619905,4.1821,4355.6,4354.8,0.285]
[1756557620108,0.1146,4356.4,4354.8,0.4797]
[1756557620109,3.5037,4354.9,4354.8,0.4797]
[1756557621507,3.3899,4354.9,4354.5,0.237]
[1756557621707,0.2959,4354.7,4354.6,0.4797]
[1756557621912,3.5037,4354.9,4354.8,0.1947]
[1756557622105,3.5037,4354.9,4354.8,0.4797]
[1756557624210,0.2959,4354.6,4354.5,0.285]
[1756557624514,3.2078,4354.9,4354.8,0.4797]
[1756557624816,0.1138,4355.8,4354.8,4.1947]
[1756557625005,3.2078,4356.0,4355.9,0.4797]
[1756557625807,0.1146,4356.4,4356.0,0.285]
[1756557626005,0.1146,4356.4,4356.3,0.4797]
[1756557626213,0.4105,4356.4,4356.3,0.4797]
[1756557626409,0.4105,4356.4,4355.8,0.237]
[1756557626410,0.1821,4356.1,4355.8,0.285]
[1756557626613,0.2959,4355.9,4355.8,0.1947]
[1756557626910,0.1821,4355.7,4355.6,0.285]
[1756557627112,0.2959,4355.7,4355.6,0.4797]
[1756557629608,0.2959,4355.7,4354.3,0.285]
[1756557629609,4.237,4355.7,4354.3,0.285]
[1756557629915,3.3216,4355.5,4354.8,0.1947]
[1756557630114,3.5036,4355.5,4355.4,0.1947]
[1756557630317,3.5036,4355.5,4355.4,0.4797]
[1756557630717,3.2078,4355.5,4355.4,0.4797]